[Event "3rd VIZAG GM-Open 2022"]
[Site "Visakapatnam"]
[Date "2022.06.13"]
[Round "3.5"]
[White "Kaustuv, Kundu"]
[Black "Fedorov, Alexei"]
[Result "1/2-1/2"]
[ECO "A41"]
[WhiteElo "2327"]
[BlackElo "2529"]
[Annotator "TA"]
[PlyCount "121"]
[EventDate "2022.06.13"]
[EventType "swiss"]
[EventCountry "IND"]
[SourceTitle "playchess.com"]
[Source "ChessBase"]
[SourceQuality "1"]
[TimeControl "5400+30"]

{[%evp 10,121,52,27,35,10,6,17,11,0,-7,-3,0,-7,0,0,0,0,0,0,0,0,0,0,0,0,13,23,24,19,27,0,27,0,41,0,0,-78,0,-192,1134,0,0,0,0,0,0,0,0,0,0,0,0,0,0,-10,-10,-15,0,0,0,0,0,0,0,-8,0,-13,0,0,0,0,0,-2,0,0,0,0,0,0,0,0,0,0,0,0,0,0,0,0,0,0,0,0,0,0,0,0,0,0,0,0,0,0,0,0,0,0,0,0,0,0,0,0]} 1. Nf3 {[%emt 0:00:04]} d6 {[%emt 0:00:37]} 2. d4 {[%emt 0:00:47]} Nf6 {[%emt 0:01:21]} 3. Nc3 {[%emt 0:00:32]} Bg4 {[%emt 0:01:46]} 4. e4 {[%emt 0:00:47]} e6 {[%emt 0:00:11]} 5. h3 {[%emt 0:06:28]} Bh5 {[%emt 0:00:38]} 6. Be2 {[%emt 0:00:57]} Bg6 {[%emt 0:05:52] A41: 1 d4 d6: Tartakower System and Modern Defence.} 7. Bg5 {[%emt 0:08:45]} Be7 {[%emt 0:01:00]} 8. e5 {[%emt 1:16:10]} Nfd7 {[%emt 0:07:13] [#]} 9. h4 $146 {[%emt 0:00:00]} ({Predecessor:} 9. Bxe7 Qxe7 10. Nb5 Na6 11. exd6 cxd6 12. c4 O-O 13. O-O Rfc8 14. b3 Nb6 15. Re1 Nc7 16. Nxc7 Rxc7 17. b4 a5 18. Qb3 axb4 19. Qxb4 Nd7 20. Qd2 b6 {1-0 (20) Emeljanov,A (2178)-Pozdniakov,V (2173) Omsk 2013}) 9... Bxg5 {[%emt 0:05:40]} 10. hxg5 {[%emt 0:00:00]} dxe5 {[%emt 0:00:34]} 11. dxe5 {[%emt 0:00:00]} ({Don't play} 11. Nxe5 Nxe5 12. dxe5 Qxg5 $17) 11... Nc6 {[%emt 0:01:08]} 12. Bb5 {[%emt 0:00:00]} Nb4 {[%emt 0:01:15]} 13. Bxd7+ {[%emt 0:00:00]} Qxd7 {[%emt 0:00:09]} 14. Qxd7+ {[%emt 0:00:00]} Kxd7 {[%emt 0:00:04]} 15. O-O-O+ {[%emt 0:00:00]} Ke7 {[%emt 0:00:44]} 16. a3 {[%emt 0:00:00]} Nc6 {[%emt 0:04:03][%cal Bb4c6,Bc6d4,Bd4f5,Bf5e3][%mdl 32]} ({Resist} 16... Nxc2 17. Nh4 $16) 17. Nh4 {[%emt 0:00:00]} Rhd8 {[%emt 0:02:27]} 18. Nxg6+ {[%emt 0:00:00]} hxg6 {[%emt 0:00:04]} 19. f4 {[%emt 0:00:00]} Nd4 {[%emt 0:09:08]} 20. g3 {[%emt 0:00:00]} Rd7 {[%emt 0:01:17]} 21. Ne4 {[%emt 0:00:00]} Rad8 {[%emt 0:07:23]} (21... Rh8 $5) 22. c3 {[%emt 0:07:00]} Nf5 {[%emt 0:14:56]} 23. Rd2 {[%emt 0:00:30]} (23. Rxd7+ $11 Rxd7 24. Rh8) 23... Rd5 ({Black should play} 23... Rxd2 $17 24. Nxd2 Nxg3) 24. Rxd5 $2 {[%emt 0:00:00]} (24. Rdh2 $11 {and White has nothing to worry.}) 24... Rd7 $4 {[%emt 0:01:43][%mdl 8192]} (24... exd5 $19 25. Nc5 Nxg3) 25. Rhd1 $2 Rxd5 $11 {[%emt 0:02:50][%mdl 4096] Endgame KRN-KRN. The position is equal.} 26. Rd2 {[%emt 0:01:30]} Ne3 {[%emt 0:05:02]} 27. b3 {[%emt 0:00:00]} b5 {[%emt 0:00:22]} 28. Re2 {[%emt 0:00:00]} Rd1+ {[%emt 0:04:52]} 29. Kb2 {[%emt 0:00:00]} Nd5 {[%emt 0:02:58]} 30. Kc2 {[%emt 0:00:00]} Ra1 {[%emt 0:00:40]} 31. Kb2 {[%emt 0:00:00] Prevents Ra2+.} Rf1 {[%emt 0:00:43]} 32. Nd2 {[%emt 0:00:00]} Rg1 {[%emt 0:04:34]} 33. Ne4 {[%emt 0:00:00]} a5 {[%emt 0:01:25]} 34. c4 {[%emt 0:00:00]} bxc4 {[%emt 0:00:29]} 35. bxc4 {[%emt 0:00:00]} Nb6 {[%emt 0:00:17]} 36. c5 {[%emt 0:00:00]} Nd5 {[%emt 0:00:45]} 37. Kb3 {[%emt 0:00:00]} Kd7 {[%emt 0:03:52]} 38. Ka4 {[%emt 0:00:00]} Kc6 {[%emt 0:02:32]} 39. Kxa5 {[%emt 0:00:00]} Rd1 {[%emt 0:01:42]} 40. Ka4 $1 {[%emt 0:01:34]} Rd3 {[%emt 0:00:52]} 41. Re1 {[%emt 0:00:45]} Rd4+ {[%emt 0:04:41]} 42. Kb3 $1 {[%emt 0:00:16]} Kb5 {[%emt 0:00:22]} 43. Nc3+ {[%emt 0:01:13]} Kxc5 {[%emt 0:00:19] [#] Threatens to win with ...Rd3.} 44. Nxd5 {[%emt 0:00:16]} Kxd5 {[%emt 0:01:33] KR-KR} 45. Kc3 {[%emt 0:01:41] Inhibits Rd3+.} Kc5 {[%emt 0:00:43]} 46. Rh1 {[%emt 0:02:00]} Re4 {[%emt 0:01:19]} 47. Rh7 {[%emt 0:00:44]} Re3+ {[%emt 0:00:07]} 48. Kd2 $1 {[%emt 0:00:59]} Rxg3 {[%emt 0:00:35]} 49. Rxg7 {[%emt 0:00:06]} Kd4 {[%emt 0:00:23]} 50. Rxf7 {[%emt 0:00:29]} Rg2+ {[%emt 0:00:20]} 51. Ke1 {[%emt 0:01:06]} c5 {[%emt 0:00:23]} 52. Rf6 $1 {[%emt 0:00:56][%csl LRe6,LRg6]} Ke3 {[%emt 0:00:55][%cal Rg2g1] [#]} 53. Kf1 {[%emt 0:00:32] Against Rg1+} Rf2+ {[%emt 0:01:22]} 54. Kg1 {[%emt 0:00:15]} Rc2 {[%emt 0:00:45]} 55. Rxe6 {[%emt 0:00:41] Hoping for Rf6.} Kxf4 {[%emt 0:00:08]} 56. Rxg6 {[%emt 0:00:08]} Kxe5 {[%emt 0:00:20]} 57. Rc6 {[%emt 0:00:10]} Kd5 {[%emt 0:00:11]} 58. Rc8 {[%emt 0:00:26]} Ke6 {[%emt 0:00:47]} 59. g6 {[%emt 0:00:44] g7 would kill now.} Kf6 {[%emt 0:00:09]} 60. Rc6+ {[%emt 0:00:05]} Kg7 {[%emt 0:00:05]} 61. a4 {[%emt 0:00:07] Weighted Error Value: White=0.21 (precise) /Black=0.05 (flawless)} 1/2-1/2

[Event "3rd VIZAG GM-Open 2022"]
[Site "Visakapatnam"]
[Date "2022.06.13"]
[Round "3.6"]
[White "Nigmatov, Ortik"]
[Black "Jubin Jimmy"]
[Result "1-0"]
[ECO "A13"]
[WhiteElo "2463"]
[BlackElo "2259"]
[Annotator "TA"]
[PlyCount "97"]
[EventDate "2022.06.13"]
[EventType "swiss"]
[EventCountry "IND"]
[SourceTitle "playchess.com"]
[Source "ChessBase"]
[SourceQuality "1"]
[TimeControl "5400+30"]

{[%evp 13,97,0,4,3,0,0,8,0,0,0,31,24,27,3,0,-49,-50,-64,-15,-28,-35,-28,-25,-32,41,0,0,0,0,0,0,0,0,0,6,0,0,0,13,16,22,22,22,22,64,25,34,44,47,42,23,0,0,0,0,0,0,0,0,0,8,7,36,36,36,36,36,36,36,8,36,36,36,36,36,36,36,36,36,0,36,0,427,421,400,209]} 1. Nf3 {[%emt 0:00:04]} Nf6 {[%emt 0:00:21]} 2. e3 {[%emt 0:00:07]} e6 {[%emt 0:00:06]} 3. c4 {[%emt 0:00:24]} d5 {[%emt 0:00:22]} 4. b3 {[%emt 0:00:11]} Be7 {[%emt 0:00:28]} 5. Bb2 {[%emt 0:00:09]} O-O {[%emt 0:00:20]} 6. Nc3 {[%emt 0:02:15]} c5 {[%emt 0:01:15] 6...c5 scores better than 6...b6.} 7. cxd5 {[%emt 0:00:08]} Nxd5 {[%emt 0:00:20]} 8. Qc2 {[%emt 0:00:08] A13: English Opening: 1...e6.} Nc6 {[%emt 0:00:53][%cal Bb8c6,Bc6a5,Ba5c4][%mdl 32]} 9. h4 {[%emt 0:00:09]} b6 {[%emt 0:02:08]} 10. a3 {[%emt 0:05:30] Prevents Ndb4. The position is equal.} f5 {[%emt 0:08:27]} 11. Nxd5 {[%emt 0:10:01]} Qxd5 {[%emt 0:03:17]} 12. Bc4 {[%emt 0:00:25]} (12. Qc3 Bf6 13. Qc2 Bb7 $15) 12... Qd6 {[%emt 0:01:26]} 13. g4 {[%emt 0:00:29] gxf5 is the strong threat.} (13. Qc3 Bf6 14. Qc2 Na5 $15) 13... Na5 {[%emt 0:26:27] [#]} 14. gxf5 $146 {[%emt 0:08:17]} (14. Qc3 $2 Bf6 15. Ne5 fxg4 $19) (14. Be2 $11) ({Predecessor:} 14. Ne5 Nxc4 15. bxc4 Bf6 16. f4 Bb7 17. Rg1 Bxh4+ 18. Ke2 Bf6 19. gxf5 exf5 20. Rg3 {1-0 (51) Krysa,L (2533)-Gorti,A (2255) Barcelona 2018}) 14... Nxc4 $15 {[%emt 0:01:14]} 15. Qxc4 {[%emt 0:02:04]} Rxf5 {[%emt 0:00:44]} (15... Bf6 $1 $15 16. Bxf6 Rxf6) 16. Rg1 {[%emt 0:02:46]} g6 {[%emt 0:10:37]} (16... Rxf3 $2 17. Rxg7+ Kf8 18. Qg4 $18) 17. Ng5 {[%emt 0:10:07]} (17. Qc3 $2 Bf6 18. Qc2 Bxb2 19. Qxb2 Rxf3 $19) 17... Qd5 {[%emt 0:08:55]} 18. f4 {[%emt 0:11:08]} ({Much weaker is} 18. Qc3 Bf6 19. Qc2 Bxg5 20. hxg5 Qf3 $17) 18... Bb7 {[%emt 0:15:40]} (18... h6 $15 19. Qc2 (19. Qc3 $2 Bf6 $19) 19... Qc6) 19. O-O-O {[%emt 0:03:33]} ({Much worse is} 19. Qc3 Bf6 20. Qc2 Bxg5 21. hxg5 Qf3 $11) (19. d3 $5 {[%cal Re1c1]}) 19... Bxg5 {[%emt 0:01:39]} 20. hxg5 {[%emt 0:00:17]} Qxc4+ {[%emt 0:00:16]} 21. bxc4 {[%emt 0:00:05]} Bf3 {[%emt 0:00:14]} 22. Rde1 {[%emt 0:00:08]} Rd8 {[%emt 0:00:44]} 23. Be5 {[%emt 0:07:07]} Rd3 {[%emt 0:01:11]} 24. e4 {[%emt 0:04:39]} Rf7 {[%emt 0:01:51]} 25. a4 {[%emt 0:00:14][%cal Ba3a4,Ba4a5][%mdl 32]} Rfd7 {[%emt 0:02:29]} 26. Bc3 {[%emt 0:00:20]} Kf7 {[%emt 0:01:39]} 27. Kc2 {[%emt 0:00:54]} Rd8 {[%emt 0:01:12]} 28. Rgf1 {[%emt 0:00:29]} Bg4 {[%emt 0:00:21]} 29. Rf2 {[%emt 0:01:49]} (29. Rh1 $5 {[%cal Rh1h7]}) 29... Kg8 {[%emt 0:01:17]} 30. a5 {[%emt 0:01:01]} Bf3 {[%emt 0:01:51]} 31. Rh2 {[%emt 0:04:56][%cal Of4f5]} R8d7 {[%emt 0:00:30]} 32. a6 {[%emt 0:04:59]} Bg4 {[%emt 0:01:35]} 33. Rg2 {[%emt 0:04:02]} Bf3 {[%emt 0:00:05]} 34. Rf2 {[%emt 0:00:07]} Bg4 {[%emt 0:00:40]} 35. Kb3 {[%emt 0:00:10]} Kf7 {[%emt 0:01:32]} 36. Rg2 {[%emt 0:00:30]} Bf3 {[%emt 0:00:37]} 37. Rh2 {[%emt 0:00:07]} Kg8 {[%emt 0:00:12]} (37... Bh5 $5 {[%cal Rd3f3]}) 38. f5 {[%emt 0:01:49]} exf5 {[%emt 0:01:01]} 39. exf5 {[%emt 0:00:06]} gxf5 {[%emt 0:00:03]} 40. Re8+ {[%emt 0:08:38]} Kf7 {[%emt 0:06:31]} 41. Rh8 {[%emt 0:00:17]} f4 {[%emt 0:00:00]} 42. Rh6 {[%emt 0:00:56]} Be4 {[%emt 0:00:00]} 43. Rf6+ {[%emt 0:00:09]} Ke7 {[%emt 0:00:00]} 44. Rxf4 {[%emt 0:00:08]} Bg6 {[%emt 0:00:00]} 45. Ra8 {[%emt 0:01:37]} Rg3 {[%emt 0:00:00][%csl LRd2,LRg5]} 46. Ka4 {[%emt 0:00:59]} Rc7 {[%emt 0:00:14]} 47. Rff8 {[%emt 0:00:54] Strongly threatening Rfb8.} Rg1 $2 {[%emt 0:01:08][%mdl 8192] [#]} (47... Rd7 $11) 48. Rfb8 $1 $18 {[%emt 0:02:27] Threatens to win with Rb7.} Kd6 {[%emt 0:02:38] [#]} 49. Rb7 $1 {[%emt 0:01:42] Weighted Error Value: White=0.06 (flawless) /Black=0.29 (precise)} 1-0

[Event "3rd VIZAG GM-Open 2022"]
[Site "Visakapatnam"]
[Date "2022.06.13"]
[Round "3.7"]
[White "Aaryan Varshney"]
[Black "Stupak, Kirill"]
[Result "0-1"]
[ECO "A08"]
[WhiteElo "2308"]
[BlackElo "2440"]
[Annotator "TA"]
[PlyCount "94"]
[EventDate "2022.06.13"]
[EventType "swiss"]
[EventCountry "IND"]
[SourceTitle "playchess.com"]
[Source "ChessBase"]
[SourceQuality "1"]
[TimeControl "5400+30"]

{[%evp 9,94,20,-2,9,28,37,18,35,27,20,47,35,51,15,14,18,53,0,6,0,0,0,0,0,0,0,-7,0,0,-6,62,-42,-55,-52,-68,-68,-52,-63,-66,-86,-87,-94,-93,-75,-83,-107,-103,-110,-108,-117,-116,-121,-94,-300,-249,-243,-240,-233,-204,-312,-262,-630,-317,-330,-319,-360,-264,-339,-324,-460,-460,-460,-460,-535,-524,-598,-581,-612,-564,-760,-752,-2114,-1825,-5102,-4814,-1748,-1692]} 1. Nf3 {[%emt 0:00:03]} d5 {[%emt 0:00:13]} 2. g3 {[%emt 0:00:05]} c5 {[%emt 0:00:27]} 3. Bg2 {[%emt 0:00:27]} g6 {[%emt 0:00:38]} 4. O-O {[%emt 0:03:46]} Bg7 {[%emt 0:00:06]} 5. d4 {[%emt 0:01:12]} cxd4 {[%emt 0:00:11]} 6. Nxd4 {[%emt 0:00:05][%cal Oc2c4] A08: King's Indian Attack.} e5 {[%emt 0:00:07]} 7. Nb3 {[%emt 0:00:18]} Ne7 {[%emt 0:00:07]} 8. c4 {[%emt 0:01:18][%cal Rc4d5] The position is equal.} d4 {[%emt 0:00:17]} 9. e3 {[%emt 0:00:22]} Nbc6 {[%emt 0:00:46]} 10. exd4 {[%emt 0:00:50]} exd4 {[%emt 0:00:05]} 11. Na3 {[%emt 0:07:19][%cal Bb1a3,Ba3c2,Bc2e3][%mdl 32]} O-O {[%emt 0:00:25]} 12. Bf4 {[%emt 0:00:14]} h6 {[%emt 0:01:58]} 13. c5 {[%emt 0:01:02]} (13. h4 $14) 13... Be6 {[%emt 0:02:43]} 14. Bd6 {[%emt 0:02:41]} Qd7 {[%emt 0:10:47]} 15. Nc2 {[%emt 0:10:33]} Bc4 {[%emt 0:12:13]} 16. Re1 {[%emt 0:01:01][%cal Rb3d4]} d3 {[%emt 0:00:04] [#] aiming for ...Bxb3.} 17. Ne3 {[%emt 0:02:38]} Ba6 {[%emt 0:01:13]} 18. Qd2 {[%emt 0:02:01]} Rfe8 {[%emt 0:07:49]} 19. Be4 {[%emt 0:04:56] [#]} Ne5 $146 {[%emt 0:11:37]} (19... Rad8 $11) ({Predecessor:} 19... Rad8 20. Bxd3 Bxd3 21. Qxd3 Bxb2 22. Rad1 Bg7 23. Qc4 Nf5 24. Nxf5 Qxf5 25. Qf4 Qc2 {½-½ (85) Kerem,H (2050)-Khamrakulov,D (2478) Cesme 2017}) 20. f4 {[%emt 0:07:25]} (20. Bxe5 $14 Bxe5 21. c6 Nxc6 22. Nc5) 20... Nc4 $15 {[%emt 0:05:03]} 21. Nxc4 {[%emt 0:02:55]} Bxc4 {[%emt 0:00:15]} 22. Bxd3 {[%emt 0:03:12]} Bxd3 {[%emt 0:01:39]} 23. Qxd3 {[%emt 0:00:42]} Nf5 {[%emt 0:00:25]} 24. Rad1 {[%emt 0:04:58] [#]} Rxe1+ {[%emt 0:02:42]} 25. Rxe1 {[%emt 0:00:07]} Rd8 {[%emt 0:01:25]} 26. Qf3 {[%emt 0:07:15]} Bxb2 {[%emt 0:04:28]} 27. Be5 {[%emt 0:02:22]} Bxe5 {[%emt 0:06:01]} 28. Rxe5 {[%emt 0:04:37]} h5 {[%emt 0:00:05][%cal Oa7a5,Bh6h5,Bh5h4][%mdl 32]} 29. Re1 {[%emt 0:02:01]} a5 {[%emt 0:03:09][%cal Ba7a5,Ba5a4][%mdl 32]} (29... Re8 {keeps more tension.} 30. Kf2 Rxe1 31. Kxe1 Qe8+) 30. Qc3 {[%emt 0:09:47]} a4 {[%emt 0:00:50]} 31. Nc1 {[%emt 0:04:19] White does not recover from this.} (31. Nd2 $17) 31... h4 {[%emt 0:03:45]} 32. g4 {[%emt 0:02:36]} Nd4 {[%emt 0:00:23][%cal Bf5d4,Bd4e6,Be6g5][%mdl 32]} 33. h3 {[%emt 0:00:17]} Qd5 {[%emt 0:01:53] Hoping for ...Nf3+.} 34. Kf2 {[%emt 0:01:52] Against Nf3} (34. Re3 $142) 34... Ne6 {[%emt 0:00:38]} 35. Qe5 {[%emt 0:01:55]} (35. Qe3) 35... Qxe5 {[%emt 0:02:28]} 36. fxe5 $19 {[%emt 0:00:44][%mdl 4096] Endgame KRN-KRN} Rd5 {[%emt 0:01:21]} (36... Nxc5 $2 37. Re3 $19) 37. Ne2 {[%emt 0:01:32]} Rxe5 {[%emt 0:02:11]} ({But not} 37... Nxc5 $2 38. Kf1 $19) 38. c6 {[%emt 0:00:56]} bxc6 {[%emt 0:00:05]} 39. Rc1 {[%emt 0:00:41]} (39. Nc3 $142 Rxe1 40. Kxe1) 39... Ng5 {[%emt 0:01:52] Black is clearly winning.} 40. Ng1 {[%emt 0:00:29]} Rb5 {[%emt 0:00:14] Threatens to win with ...Rb2+.} 41. Rxc6 {[%emt 0:02:51]} Rb2+ {[%emt 0:00:08]} 42. Ke3 {[%emt 0:00:13]} Rxa2 {[%emt 0:00:17]} 43. Kf4 {[%emt 0:00:18]} Ne6+ {[%emt 0:00:47]} 44. Ke5 {[%emt 0:00:26]} Rf2 {[%emt 0:00:19] White must now prevent ...a3.} 45. Ra6 {[%emt 0:00:18]} Rf1 {[%emt 0:00:20]} 46. Ne2 {[%emt 0:00:05]} Re1 {[%emt 0:00:09]} 47. Rxa4 {[%emt 0:00:19]} Rxe2+ {[%emt 0:00:05] Weighted Error Value: White=0.58/Black=0.19 (very precise)} 0-1

[Event "3rd VIZAG GM-Open 2022"]
[Site "Visakapatnam"]
[Date "2022.06.13"]
[Round "3.8"]
[White "Azaladze, Shota"]
[Black "Bharat Kumar Reddy Poluri"]
[Result "0-1"]
[ECO "D77"]
[WhiteElo "2420"]
[BlackElo "2224"]
[Annotator "TA"]
[PlyCount "142"]
[EventDate "2022.06.13"]
[EventType "swiss"]
[EventCountry "IND"]
[SourceTitle "playchess.com"]
[Source "ChessBase"]
[SourceQuality "1"]
[TimeControl "5400+30"]

{[%evp 18,142,30,26,33,33,24,30,59,37,32,29,41,22,25,21,37,26,27,24,35,21,25,23,28,15,22,14,24,-2,-9,-30,-25,-46,-22,-104,-104,-105,-115,-126,-136,-130,-142,-120,-29,-29,-29,-29,-29,-29,-21,-21,-24,-28,-28,-28,-28,-28,-15,-28,-6,-28,-28,-28,-21,-21,-21,-21,-13,-14,-10,-28,-28,-57,-56,-90,-87,-82,-39,-85,-79,-151,-70,-70,-70,-70,-70,-217,-191,-217,-186,-177,-177,-167,-162,-141,-70,-12829,-70,-70,-70,-70,-70,-12833,-12834,-12837,-12836,-12839,-12836,-12840,-12838,-12838,-12839,-12842,-12843,-12842,-12843,-12845,-12845,-12845,-12846,-12847,-12847,-12848,-12848,-12850,-12849]} 1. Nf3 {[%emt 0:02:17]} d5 {[%emt 0:00:17]} 2. g3 {[%emt 0:00:05]} g6 {[%emt 0:00:15]} 3. Bg2 {[%emt 0:00:06]} Bg7 {[%emt 0:00:04]} 4. d4 {[%emt 0:01:29]} Nf6 {[%emt 0:00:07]} 5. O-O {[%emt 0:00:08]} O-O {[%emt 0:00:16]} 6. c4 {[%emt 0:00:20]} dxc4 {[%emt 0:00:58]} 7. Na3 {[%emt 0:00:17][%cal Bb1a3,Ba3c4,Bc4a5][%mdl 32]} c3 {[%emt 0:00:26]} 8. bxc3 {[%emt 0:00:03]} c5 {[%emt 0:00:07]} 9. Nc4 {[%emt 0:02:46]} Nc6 {[%emt 0:03:57]} 10. Nfe5 {[%emt 0:08:36]} cxd4 {[%emt 0:04:33] D77: Fianchetto Grünfeld: 6 0-0: Replies other than 6...c6.} 11. Nxc6 {[%emt 0:00:48]} bxc6 {[%emt 0:00:10]} 12. cxd4 {[%emt 0:00:20]} (12. Bxc6 $2 Bh3 13. Bxa8 Qxa8 $19) (12. Qxd4 Ba6 13. Ne5 Nd7 $1 $11) 12... Nd5 {[%emt 0:00:48] [#] White has an edge.} 13. Qd2 $146 {[%emt 0:05:27]} ({Predecessor:} 13. Bb2 Rb8 14. Rc1 Be6 15. Ba1 Bh6 16. e3 f6 17. Qa4 Rb5 18. Rb1 Qb8 19. Na3 {½-½ (43) Devine,C (2088)-Peyrer,K (2149) Austria 2019}) 13... Ba6 {[%emt 0:05:02]} 14. Na5 {[%emt 0:20:54]} Qb6 {[%emt 0:04:51]} 15. Ba3 {[%emt 0:06:11] Rab1 is the strong threat.} Bxe2 {[%emt 0:08:06][%cal Og7d4]} 16. Bc5 {[%emt 0:02:07]} Qa6 {[%emt 0:02:12] [#]} 17. Nxc6 $1 {[%emt 0:07:04]} Qxc6 {[%emt 0:02:31]} ({Resist} 17... Bxf1 18. Bxd5 Bh3 19. Nxe7+ Kh8 20. Bxa8 Rxa8 21. Re1 $16) 18. Qxe2 {[%emt 0:00:14]} Rfe8 {[%emt 0:05:23]} 19. Rfc1 {[%emt 0:05:11][%cal Oc5a7]} e6 {[%emt 0:01:40]} 20. a4 {[%emt 0:04:30]} Rec8 {[%emt 0:01:48]} 21. h4 {[%emt 0:00:49]} Qd7 {[%emt 0:04:09]} 22. a5 {[%emt 0:02:41]} Rc7 {[%emt 0:02:31]} 23. h5 {[%emt 0:09:13]} Rac8 {[%emt 0:00:08][%cal Og7d4] White must now prevent ...Bxd4!} 24. Qd2 {[%emt 0:00:14]} Nf6 {[%emt 0:03:51][%cal Oc7c5,Bd5f6,Bf6h5,Bh5g7][%mdl 32]} 25. Qb4 {[%emt 0:02:03]} Nxh5 {[%emt 0:07:50][%cal Og7d4]} 26. a6 {[%emt 0:00:07] [#]} (26. Rcb1 $11 {keeps the balance.}) 26... Bxd4 $1 $17 {[%emt 0:02:17][%mdl 512]} 27. Qxd4 {[%emt 0:02:08]} (27. Bxd4 Rxc1+) 27... Qxd4 {[%emt 0:00:15]} 28. Bxd4 {[%emt 0:00:02] This bishop pair is nice.} Rxc1+ {[%emt 0:00:06]} 29. Rxc1 {[%emt 0:00:03]} Rxc1+ {[%emt 0:00:05][%mdl 4096] Endgame KRN-KB} 30. Kh2 {[%emt 0:00:07]} Ng7 {[%emt 0:12:41]} ({Worse is} 30... Rc7 31. Bb7 $15) (30... Rc4 $1 $17 {[%cal Rc4d4]} 31. Bxa7 Nf6) 31. Bxa7 $11 {[%emt 0:00:59] Hoping for Bd4.} Ra1 {[%emt 0:00:44]} 32. Bb7 {[%emt 0:00:37]} Ne8 {[%emt 0:00:48]} 33. Bb8 {[%emt 0:03:02] Against Nc7} Kf8 {[%emt 0:06:30]} 34. a7 {[%emt 0:01:28] [#]} Nc7 {[%emt 0:00:02] Inhibits a8Q.} 35. Bxc7 {[%emt 0:00:28]} (35. Bc6 {with more complications.} f6 36. Kg2 Kf7 37. Bxc7 Rxa7 38. Bf4) 35... Rxa7 {[%emt 0:00:05]} 36. Bd6+ {[%emt 0:00:04]} Kg7 {[%emt 0:00:08]} 37. Be4 {[%emt 0:00:33]} f6 {[%emt 0:00:13]} 38. Kg2 {[%emt 0:00:29]} h5 {[%emt 0:00:35]} 39. Bc5 {[%emt 0:00:13]} Ra4 {[%emt 0:00:25]} 40. Bf3 {[%emt 0:00:05]} e5 {[%emt 0:02:01]} 41. Be3 {[%emt 0:00:08]} h4 {[%emt 0:00:45]} 42. Bc6 {[%emt 0:02:57]} Rb4 {[%emt 0:00:33]} 43. gxh4 {[%emt 0:02:19]} Rc4 {[%emt 0:00:33]} 44. Bf3 {[%emt 0:00:33]} Rxh4 {[%emt 0:00:03]} 45. Kg3 {[%emt 0:00:11]} g5 {[%emt 0:00:14][%cal Bg6g5,Bg5g4][%mdl 32]} 46. Bc6 {[%emt 0:00:33] [#]} f5 $1 {[%emt 0:00:33]} 47. Kg2 {[%emt 0:00:20]} Rc4 {[%emt 0:00:44]} 48. Bd5 {[%emt 0:00:08]} (48. Bd7 $1 $15) 48... Rb4 $17 {[%emt 0:00:09]} 49. f3 {[%emt 0:00:54]} (49. Bf3 $142) 49... Kf6 {[%emt 0:01:21]} ({Black should play} 49... g4 $17 50. fxg4 Rxg4+ 51. Kf2 Ra4) 50. Bf2 $1 $15 {[%emt 0:01:11]} g4 {[%emt 0:01:18] Threatens to win with ...Kg5.} 51. Bh4+ {[%emt 0:00:34]} Kg6 {[%emt 0:00:05] And now ...gxf3+ would win.} 52. Be7 {[%emt 0:00:22]} ({White must play} 52. fxg4 $1 $15 Rxg4+ 53. Kh3) 52... Rd4 $19 {[%emt 0:02:06]} 53. Bc6 {[%emt 0:00:39]} Rd2+ {[%emt 0:00:29]} 54. Kg3 {[%emt 0:00:29]} Rd3 {[%emt 0:00:10]} 55. Kf2 {[%emt 0:00:27]} gxf3 {[%emt 0:01:36]} 56. Bxf3 {[%emt 0:00:19]} e4 {[%emt 0:00:15]} (56... Rd7 $17 57. Bb4 e4) 57. Bg2 $2 {[%emt 0:01:00][%mdl 8192]} (57. Be2 $15) 57... Kh5 $2 {[%emt 0:02:26]} (57... Rd7 $19 58. Bb4 Kg5) 58. Bf1 $1 $15 {[%emt 0:00:30]} Rd7 {[%emt 0:00:08]} 59. Be2+ {[%emt 0:01:48]} Kg6 {[%emt 0:00:03]} 60. Bb4 {[%emt 0:00:27][%mdl 8192] [#]} (60. Bh4 $15) 60... f4 $1 $19 {[%emt 0:00:17] Black is clearly winning.} 61. Bf1 {[%emt 0:00:02]} Kg5 {[%emt 0:00:24]} 62. Ba5 {[%emt 0:00:23]} Rd5 {[%emt 0:01:17]} 63. Bb6 {[%emt 0:00:18]} Kg4 {[%emt 0:00:38]} 64. Be2+ {[%emt 0:00:07]} Kf5 {[%emt 0:00:35]} 65. Bf1 {[%emt 0:00:06]} Rd2+ {[%emt 0:00:05]} 66. Ke1 {[%emt 0:00:03]} e3 {[%emt 0:01:54]} 67. Ba5 {[%emt 0:04:02]} Ra2 {[%emt 0:02:18]} 68. Bd3+ {[%emt 0:00:12]} Kg4 {[%emt 0:00:14]} 69. Bc7 {[%emt 0:01:38]} Kf3 {[%emt 0:00:18]} 70. Be5 {[%emt 0:00:09]} Rh2 {[%emt 0:00:26]} 71. Bf1 {[%emt 0:01:02]} Rh1 {[%emt 0:00:20] Weighted Error Value: White=0.42/Black=0.30} 0-1